fUST/lending_fUST_20250920
["ID","MTS","AMOUNT","RATE_DAILY","PERIOD"]
[386440652,1758299447793,-480.0,0.0002166,2]
[386440653,1758299447803,-480.0,0.0002166,2]
[386440654,1758299447812,-480.0,0.0002166,2]
[386440655,1758299447822,-480.0,0.0002166,2]
[386440656,1758299447831,-480.0,0.0002166,2]
[386440657,1758299447842,-480.0,0.0002166,2]
[386440658,1758299447852,-474.00229638,0.0002166,2]
[386440659,1758299447862,-1217.47,0.0002166,2]
[386440660,1758299447872,-480.0,0.0002166,2]
[386440661,1758299447881,-480.0,0.0002166,2]
[386440662,1758299447892,-912.97,0.0002166,2]
[386440663,1758299447901,-480.0,0.0002166,2]
[386440664,1758299447911,-532.23538846,0.0002166,2]
[386440665,1758299447920,-480.0,0.0002166,2]
[386440666,1758299447930,-480.0,0.0002166,2]
[386440667,1758299447940,-480.0,0.0002166,2]
[386440668,1758299447950,-480.0,0.0002166,2]
[386440669,1758299447959,-480.0,0.0002166,2]
[386440670,1758299447969,-480.0,0.0002166,2]
[386440671,1758299447978,-480.0,0.0002166,2]
[386440672,1758299447988,-480.0,0.0002166,2]
[386440673,1758299447997,-480.0,0.0002166,2]
[386440674,1758299448007,-480.0,0.0002166,2]
[386440675,1758299448020,-480.0,0.0002166,2]
[386440676,1758299448030,-203.29361289,0.0002166,2]
[386440677,1758299448040,-480.0,0.0002166,2]
[386440678,1758299448050,-480.0,0.0002166,2]
[386440679,1758299448060,-220.63003307,0.0002166,2]
[386440680,1758299448069,-500.0,0.0002166,2]
[386440681,1758299448079,-480.0,0.0002166,2]
[386440682,1758299448091,-480.0,0.0002166,2]
[386440683,1758299448101,-480.0,0.00021661,2]
[386440684,1758299448111,-480.0,0.00021661,2]
[386440685,1758299448121,-480.0,0.00021661,2]
[386440686,1758299448130,-480.0,0.00021661,2]
[386440687,1758299448140,-480.0,0.00021661,2]
[386440688,1758299448150,-480.0,0.00021661,2]
[386440689,1758299448160,-480.0,0.00021661,2]
[386440690,1758299448170,-480.0,0.00021661,2]
[386440691,1758299448180,-482.40454939,0.00021661,2]
[386440692,1758299448190,-480.0,0.00021661,2]
[386440693,1758299448199,-480.0,0.00021661,2]
[386440694,1758299448210,-480.0,0.00021661,2]
[386440695,1758299448219,-480.0,0.00021661,2]
[386440696,1758299448229,-480.0,0.00021661,2]
[386440697,1758299448239,-480.0,0.00021661,2]
[386440698,1758299448249,-480.0,0.00021661,2]
[386440699,1758299448258,-449.53343948,0.00021661,2]
[386440700,1758299448268,-480.0,0.00021661,2]
[386440701,1758299448278,-480.0,0.00021661,2]
[386440702,1758299448287,-480.0,0.00021661,2]
[386440703,1758299448298,-480.0,0.00021661,2]
[386440704,1758299448308,-480.0,0.00021661,2]
[386440705,1758299448318,-469.5455448,0.00021661,2]
[386440706,1758299448329,-480.0,0.00021661,2]
[386440707,1758299448339,-480.0,0.00021661,2]
[386440708,1758299448349,-480.0,0.00021661,2]
[386440709,1758299448358,-480.0,0.00021661,2]
[386440710,1758299448368,-480.0,0.00021661,2]
[386440711,1758299448378,-480.0,0.00021661,2]
[386440712,1758299448388,-480.0,0.00021661,2]
[386440713,1758299448398,-480.0,0.00021661,2]
[386440714,1758299448408,-480.0,0.00021661,2]
[386440715,1758299448418,-480.0,0.00021661,2]
[386440716,1758299448428,-480.0,0.00021661,2]
[386440717,1758299448438,-290.91620378,0.00021661,2]
[386440718,1758299448448,-480.0,0.00021661,2]
[386440719,1758299448457,-501.78656178,0.00021661,2]
[386440720,1758299448467,-480.0,0.00021661,2]
[386440721,1758299448477,-480.0,0.00021661,2]
[386440722,1758299448486,-480.0,0.00021661,2]
[386440723,1758299448496,-480.0,0.00021661,2]
[386440724,1758299448506,-480.0,0.00021661,2]
[386440725,1758299448516,-480.0,0.00021661,2]
[386440726,1758299448526,-480.0,0.00021661,2]
[386440727,1758299448536,-480.0,0.00021661,2]
[386440728,1758299448546,-480.0,0.00021661,2]
[386440729,1758299448555,-480.0,0.00021661,2]
[386440730,1758299448566,-480.0,0.00021661,2]
[386440731,1758299448575,-480.0,0.00021661,2]
[386440732,1758299448586,-480.0,0.00021661,2]
[386440733,1758299448595,-480.0,0.00021661,2]
[386440734,1758299448606,-961.98,0.00021661,2]
[386440735,1758299448616,-480.0,0.00021661,2]
[386440736,1758299448625,-372.91376784,0.00021661,2]
[386440737,1758299448635,-480.0,0.00021661,2]
[386440738,1758299448644,-1771.33,0.00021661,2]
[386440739,1758299448654,-227.19549688,0.00021661,2]
[386440740,1758299448663,-529.25235228,0.00021661,2]
[386440741,1758299448672,-828.66,0.00021661,2]
[386440742,1758299448683,-480.0,0.00021661,2]
[386440743,1758299448693,-480.0,0.00021661,2]
[386440744,1758299448703,-1146.79,0.00021661,2]
[386440745,1758299448713,-480.0,0.00021661,2]
[386440746,1758299448723,-480.0,0.00021661,2]
[386440747,1758299448732,-480.0,0.00021661,2]
[386440748,1758299448741,-209.90170492,0.00021661,2]
[386440749,1758299448751,-480.0,0.00021661,2]
[386440750,1758299448761,-480.0,0.00021661,2]
[386440751,1758299448771,-480.0,0.00021661,2]
[386440752,1758299448780,-480.0,0.00021661,2]
[386440753,1758299448790,-480.0,0.00021661,2]
[386440754,1758299448800,-480.0,0.00021661,2]
[386440755,1758299448809,-480.0,0.00021661,2]
[386440756,1758299448820,-480.0,0.00021661,2]
[386440757,1758299448830,-480.0,0.00021661,2]
[386440758,1758299448839,-482.3397807,0.00021661,2]
[386440759,1758299448849,-480.0,0.00021661,2]
[386440760,1758299448859,-480.0,0.00021661,2]
[386440761,1758299448869,-480.0,0.00021661,2]
[386440762,1758299448880,-488.63666325,0.00021661,2]
[386440763,1758299448890,-480.0,0.00021661,2]
[386440764,1758299448900,-480.0,0.00021661,2]
[386440765,1758299448910,-2411.98,0.00021661,2]
[386440766,1758299448920,-480.0,0.00021661,2]
[386440767,1758299448930,-480.0,0.00021661,2]
[386440768,1758299448940,-500.0,0.00021662,2]
[386440769,1758299448950,-164.64775599,0.00021673,2]
[386440770,1758299448960,-500.65319894,0.00021673,2]
[386440771,1758299448970,-501.2309403,0.00021673,2]
[386440772,1758299448980,-500.0,0.00021673,2]
[386440773,1758299448990,-500.0,0.00021673,2]
[386440774,1758299449000,-500.0,0.00021673,2]
[386440775,1758299449013,-500.0,0.00021673,2]
[386440776,1758299449023,-500.0,0.00021673,2]
[386440777,1758299449036,-500.0,0.000217,2]
[386440778,1758299449051,-151.0,0.000219,3]
[386440779,1758299449062,-500.0,0.0002192,2]
[386440780,1758299449071,-500.0,0.00021921,2]
[386440781,1758299449082,-155.76395663,0.00021921,2]
[386440782,1758299449093,-1000.0,0.00021921,2]
[386440783,1758299449105,-1000.0,0.00021921,2]
[386440784,1758299449116,-500.0,0.00021921,2]
[386440785,1758299449126,-482.87747629,0.00021921,2]
[386440786,1758299449136,-1000.0,0.00021921,2]
[386440787,1758299449145,-286.54467478,0.00021921,2]
[386440788,1758299449155,-1836.66,0.00021922,2]
[386440789,1758299449165,-513.39,0.00021922,2]
[386440790,1758299449175,-480.0,0.00021922,2]
[386440791,1758299449185,-517.57805037,0.00021922,2]
[386440792,1758299449194,-1036.85,0.00021922,2]
[386440793,1758299449204,-1144.27,0.00021922,2]
[386440794,1758299449214,-480.0,0.00021922,2]
[386440795,1758299449224,-480.0,0.00021922,2]
[386440796,1758299449234,-480.0,0.00021922,2]
[386440797,1758299449244,-480.0,0.00021922,2]
[386440798,1758299449253,-480.0,0.00021922,2]
[386440799,1758299449262,-480.0,0.00021922,2]
[386440800,1758299449272,-2562.52,0.00021922,2]
[386440801,1758299449281,-1185.0,0.00021922,2]
[386440802,1758299449291,-480.0,0.00021924,2]
[386440803,1758299449300,-480.0,0.00021924,2]
[386440804,1758299449310,-480.0,0.00021924,2]
[386440805,1758299449319,-480.0,0.00021924,2]
[386440806,1758299449330,-1013.02,0.00021924,2]
[386440807,1758299449339,-480.0,0.00021924,2]
[386440808,1758299449349,-925.51,0.00021924,2]
[386440809,1758299449359,-480.0,0.00021924,2]
[386440810,1758299449369,-480.0,0.00021924,2]
[386440811,1758299449379,-151.0,0.00021925,2]
[386440812,1758299449388,-265.38775355,0.00021925,2]
[386440813,1758299449398,-198.0,0.00021925,2]
[386440814,1758299449407,-151.0,0.00021925,2]
[386440815,1758299449417,-151.0,0.00021925,2]
[386440816,1758299449427,-155.6578867,0.00021925,2]
[386440817,1758299449437,-683.0,0.00021925,2]
[386440818,1758299449447,-151.0,0.00021925,2]
[386440819,1758299449456,-151.0,0.00021925,2]
[386440820,1758299449466,-349.0,0.00021925,2]
[386440821,1758299449477,-480.0,0.00021925,2]
[386440822,1758299449487,-480.0,0.00021925,2]
[386440823,1758299449497,-480.0,0.00021925,2]
[386440824,1758299449507,-480.0,0.00021925,2]
[386440825,1758299449517,-480.0,0.00021925,2]
[386440826,1758299449527,-480.0,0.00021925,2]
[386440827,1758299449539,-634.58,0.00021925,2]
[386440828,1758299449550,-833.51,0.00021925,2]
[386440829,1758299449559,-577.64,0.00021925,2]
[386440830,1758299449569,-480.0,0.00021925,2]
[386440831,1758299449579,-480.0,0.00021925,2]
[386440832,1758299449595,-480.0,0.00021925,2]
[386440833,1758299449605,-480.0,0.00021925,2]
[386440834,1758299449615,-532.32,0.00021925,2]
[386440835,1758299449624,-499.23,0.00021925,2]
[386440836,1758299449634,-480.0,0.00021925,2]
[386440837,1758299449644,-480.0,0.00021925,2]
[386440838,1758299449654,-613.87,0.00021925,2]
[386440839,1758299449663,-480.0,0.00021925,2]
[386440840,1758299449673,-798.68,0.00021925,2]
[386440841,1758299449683,-480.0,0.00021925,2]
[386440842,1758299449692,-480.0,0.00021925,2]
[386440843,1758299449702,-480.0,0.00021925,2]
[386440844,1758299449712,-480.0,0.00021925,2]
[386440845,1758299449722,-480.0,0.00021925,2]
[386440846,1758299449734,-523.81773233,0.00021925,2]
[386440847,1758299449747,-968.69,0.00021925,2]
[386440848,1758299449757,-480.0,0.00021925,2]
[386440849,1758299449766,-480.0,0.00021925,2]
[386440850,1758299449776,-873.74,0.00021925,2]
[386440851,1758299449785,-480.0,0.00021925,2]
[386440852,1758299449795,-480.0,0.00021929,2]
[386440853,1758299449805,-540.0,0.00021929,2]
[386440854,1758299449815,-312.75617806,0.0002193,2]
[386440855,1758299449824,-480.0,0.0002193,2]
[386440856,1758299449834,-454.94024276,0.0002193,2]
[386440857,1758299449843,-480.0,0.0002193,2]
[386440858,1758299449852,-480.0,0.0002193,2]
[386440859,1758299449862,-480.0,0.0002193,2]
[386440860,1758299449871,-495.60309307,0.0002193,2]
[386440861,1758299449881,-480.0,0.0002193,2]
[386440862,1758299449888,-480.0,0.0002193,2]
[386440863,1758299449897,-480.0,0.0002193,2]
[386440864,1758299449904,-480.0,0.0002193,2]
[386440865,1758299449911,-480.0,0.0002193,2]
[386440866,1758299449919,-480.0,0.0002193,2]
[386440867,1758299449927,-480.0,0.0002193,2]
[386440868,1758299449934,-480.0,0.0002193,2]
[386440869,1758299449941,-480.0,0.00021932,2]
[386440870,1758299449950,-5292.83,0.00021933,2]
[386440871,1758299449958,-1077.65,0.00021933,2]
[386440872,1758299449967,-1383.47,0.00021933,2]
[386440873,1758299449975,-7199.39,0.00021933,2]
[386440874,1758299449983,-480.0,0.00021933,2]
[386440875,1758299449992,-1010.72,0.00021933,2]
[386440876,1758299450002,-480.0,0.00021933,2]
[386440877,1758299450015,-480.0,0.00021934,2]
[386440878,1758299450024,-480.0,0.00021934,2]
[386440879,1758299450035,-480.0,0.00021934,2]
[386440880,1758299450044,-480.0,0.00021934,2]
[386440881,1758299450054,-480.0,0.00021934,2]
[386440882,1758299450063,-480.0,0.00021934,2]
[386440883,1758299450074,-480.0,0.00021934,2]
[386440884,1758299450083,-480.0,0.00021934,2]
[386440885,1758299450093,-480.0,0.00021934,2]
[386440886,1758299450104,-1217.47,0.00021934,2]
[386440887,1758299450113,-480.0,0.00021934,2]
[386440888,1758299450123,-480.0,0.00021934,2]
[386440889,1758299450133,-912.97,0.00021934,2]
[386440890,1758299450143,-480.0,0.00021934,2]
[386440891,1758299450153,-480.0,0.00021934,2]
[386440892,1758299450163,-480.0,0.00021934,2]
[386440893,1758299450173,-480.0,0.00021934,2]
[386440894,1758299450183,-480.0,0.00021934,2]
[386440895,1758299450192,-480.0,0.00021934,2]
[386440896,1758299450202,-480.0,0.00021934,2]
[386440897,1758299450212,-205.42497926,0.00021934,2]
[386440898,1758299450221,-480.0,0.00021934,2]
[386440899,1758299450231,-480.0,0.00021934,2]
[386440900,1758299450242,-480.0,0.00021934,2]
[386440901,1758299450252,-480.0,0.00021934,2]
[386440902,1758299450263,-480.0,0.00021934,2]
[386440903,1758299450273,-480.0,0.00021934,2]
[386440904,1758299450283,-480.0,0.00021935,2]
[386440905,1758299450292,-480.0,0.00021935,2]
[386440906,1758299450301,-332.66326573,0.00021935,2]
[386440907,1758299450311,-480.0,0.00021935,2]
[386440908,1758299450320,-480.0,0.00021935,2]
[386440909,1758299450331,-480.0,0.00021935,2]
[386440910,1758299450340,-480.0,0.00021935,2]
[386440911,1758299450350,-480.0,0.00021935,2]
[386440912,1758299450361,-480.0,0.00021935,2]
[386440913,1758299450371,-480.0,0.00021935,2]
[386440914,1758299450504,-480.0,0.00021935,2]
[386440915,1758299450514,-480.0,0.00021935,2]
[386440916,1758299450524,-480.0,0.00021935,2]
[386440917,1758299450533,-340.56300747,0.00021935,2]
[386440918,1758299450543,-536.62,0.00021935,2]
[386440919,1758299450552,-480.0,0.00021935,2]
[386440920,1758299450562,-480.0,0.00021935,2]
[386440921,1758299450572,-480.0,0.00021935,2]
[386440922,1758299450582,-480.0,0.00021935,2]
[386440923,1758299450592,-589.09506302,0.00021935,2]
[386440924,1758299450602,-480.0,0.00021935,2]
[386440925,1758299450611,-480.0,0.00021935,2]
[386440926,1758299450621,-425.80550749,0.00021935,2]
[386440927,1758299450630,-480.0,0.00021935,2]
[386440928,1758299450640,-480.0,0.00021935,2]
[386440929,1758299450650,-480.0,0.00021935,2]
[386440930,1758299450659,-480.0,0.00021935,2]
[386440931,1758299450668,-480.0,0.00021935,2]
[386440932,1758299450678,-961.98,0.00021935,2]
[386440933,1758299450687,-480.0,0.00021935,2]
[386440934,1758299450697,-353.61397931,0.00021935,2]
[386440935,1758299450706,-1771.33,0.00021935,2]
[386440936,1758299450715,-828.66,0.00021935,2]
[386440937,1758299450724,-480.0,0.00021935,2]
[386440938,1758299450733,-480.0,0.00021935,2]
[386440939,1758299450743,-1146.79,0.00021935,2]
[386440940,1758299450752,-480.0,0.00021935,2]
[386440941,1758299450761,-339.01910237,0.00021935,2]
[386440942,1758299450771,-480.0,0.00021935,2]
[386440943,1758299450780,-480.0,0.00021935,2]
[386440944,1758299450790,-480.0,0.00021935,2]
[386440945,1758299450799,-441.57047349,0.00021935,2]
[386440946,1758299450808,-480.0,0.00021935,2]
[386440947,1758299450818,-480.0,0.00021935,2]
[386440948,1758299450827,-480.0,0.00021935,2]
[386440949,1758299450837,-480.0,0.00021935,2]
[386440950,1758299450847,-480.0,0.00021935,2]
[386440951,1758299450857,-480.0,0.00021935,2]
[386440952,1758299450867,-2411.98,0.00021935,2]
[386440953,1758299450877,-480.0,0.00021935,2]
[386440954,1758299450886,-500.0,0.00021973,2]
[386440955,1758299450895,-500.0,0.00021973,2]
[386440956,1758299450904,-500.74865934,0.00021973,2]
[386440957,1758299450913,-500.0,0.00021973,2]
[386440958,1758299450923,-500.0,0.00021973,2]
[386440959,1758299450932,-500.0,0.00021973,2]
[386440960,1758299450942,-500.0,0.00021973,2]
[386440961,1758299450951,-500.0,0.00021973,2]
[386440962,1758299450961,-500.0,0.00021973,2]
[386440963,1758299450969,-585.34941517,0.00021973,2]
[386440964,1758299450979,-500.0,0.00021973,2]
[386440965,1758299450988,-239.33335732,0.00021973,2]
[386440966,1758299450998,-505.8389514,0.00021973,2]
[386440967,1758299451009,-500.0,0.00021973,2]
[386440968,1758299451020,-310.0,0.0002198,2]
[386440969,1758299451029,-152.0,0.00022,2]
[386440970,1758299451039,-4407.53,0.00022,7]
[386440971,1758299451048,-53328.67050093,0.00022,5]
[386440972,1758299451058,-555.90003508,0.00022,7]
[386440973,1758299451067,-151.0,0.00022,9]
[386440974,1758299451078,-163.3,0.00022,2]
[386440975,1758299451088,-315065.12417641,0.000221,2]
[386440976,1758299451097,-217.59815,0.000221,7]
[386440977,1758299451107,-219.962288,0.000221,7]
[386440978,1758299451115,-219.962288,0.000221,7]
[386440979,1758299451125,-219.962288,0.000221,7]
[386440980,1758299451134,-219.962288,0.000221,7]
[386440981,1758299451143,-647.559712,0.000221,7]
[386440982,1758299451151,-647.559712,0.000221,7]
[386440983,1758299451161,-647.559712,0.000221,7]
[386440984,1758299451171,-647.559712,0.000221,7]
[386440985,1758299451179,-151.0,0.000221,7]
[386440986,1758299451189,-295.318742,0.000221,7]
[386440987,1758299451198,-295.318742,0.000221,7]
[386440988,1758299451207,-151.0,0.000221,7]
[386440989,1758299451216,-295.318742,0.000221,7]
[386440990,1758299451225,-295.318742,0.000221,7]
[386440991,1758299451234,-151.0,0.000221,7]
[386440992,1758299451243,-279.603439,0.000221,7]
[386440993,1758299451252,-151.0,0.000221,7]
[386440994,1758299451261,-1217.208672,0.000221,7]
[386440995,1758299451269,-152.127792,0.000221,7]
[386440996,1758299451278,-1217.208672,0.000221,7]
[386440997,1758299451287,-1217.208672,0.000221,7]
[386440998,1758299451296,-1217.208672,0.000221,7]
[386440999,1758299451304,-151.0,0.000221,7]
[386441000,1758299451313,-151.0,0.000221,7]
[386441001,1758299451322,-151.0,0.000221,7]
[386441002,1758299451331,-178.623091,0.000221,7]
[386441003,1758299451340,-151.0,0.000221,7]
[386441004,1758299451350,-178.623091,0.000221,7]
[386441005,1758299451359,-178.623091,0.000221,7]
[386441006,1758299451368,-178.623091,0.000221,7]
[386441007,1758299451378,-153.29791,0.000221,7]
[386441008,1758299451386,-151.625973,0.000221,7]
[386441009,1758299451395,-274.893816,0.000221,7]
[386441010,1758299451403,-274.893816,0.000221,7]
[386441011,1758299451412,-151.0,0.000221,7]
[386441012,1758299451421,-274.893816,0.000221,7]
[386441013,1758299451431,-151.0,0.000221,7]
[386441014,1758299451440,-151.0,0.000221,7]
[386441015,1758299451450,-274.893816,0.000221,7]
[386441016,1758299451459,-151.0,0.000221,7]
[386441017,1758299451469,-271.281318,0.000221,7]
[386441018,1758299451478,-151.0,0.000221,7]
[386441019,1758299451489,-151.0,0.000221,7]
[386441020,1758299451498,-151.0,0.000221,7]
[386441021,1758299451507,-204.161602,0.000221,7]
[386441022,1758299451517,-151.0,0.000221,7]
[386441023,1758299451526,-151.0,0.000221,7]
[386441024,1758299451535,-151.0,0.000221,7]
[386441025,1758299451545,-204.161602,0.000221,7]
[386441026,1758299451554,-204.161602,0.000221,7]
[386441027,1758299451563,-1836.66,0.00022196,2]
[386441028,1758299451572,-513.39,0.00022196,2]
[386441029,1758299451582,-480.0,0.00022196,2]
[386441030,1758299451591,-1036.85,0.00022196,2]
[386441031,1758299451601,-1144.27,0.00022196,2]
[386441032,1758299451610,-480.0,0.00022196,2]
[386441033,1758299451619,-480.0,0.00022196,2]
[386441034,1758299451628,-480.0,0.00022196,2]
[386441035,1758299451637,-480.0,0.00022196,2]
[386441036,1758299451646,-480.0,0.00022196,2]
[386441037,1758299451655,-480.0,0.00022196,2]
[386441038,1758299451663,-2562.52,0.00022196,2]
[386441039,1758299451672,-1185.0,0.00022196,2]
[386441040,1758299451681,-480.0,0.00022198,2]
[386441041,1758299451690,-480.0,0.00022198,2]
[386441042,1758299451699,-480.0,0.00022198,2]
[386441043,1758299451709,-480.0,0.00022198,2]
[386441044,1758299451718,-1013.02,0.00022198,2]
[386441045,1758299451727,-480.0,0.00022198,2]
[386441046,1758299451736,-925.51,0.00022198,2]
[386441047,1758299451745,-480.0,0.00022198,2]
[386441048,1758299451754,-480.0,0.00022198,2]
[386441049,1758299451764,-151.0,0.00022199,2]
[386441050,1758299451773,-151.0,0.00022199,2]
[386441051,1758299451782,-683.0,0.00022199,2]
[386441052,1758299451792,-245.0,0.00022199,2]
[386441053,1758299451801,-151.0,0.00022199,2]
[386441054,1758299451811,-480.0,0.00022199,2]
[386441055,1758299451820,-480.0,0.00022199,2]
[386441056,1758299451832,-480.0,0.00022199,2]
[386441057,1758299451841,-480.0,0.00022199,2]
[386441058,1758299451851,-480.0,0.00022199,2]
[386441059,1758299451861,-480.0,0.00022199,2]
[386441060,1758299451870,-634.58,0.00022199,2]
[386441061,1758299451879,-833.51,0.00022199,2]
[386441062,1758299451888,-613.96,0.00022199,2]
[386441063,1758299451898,-442.64764697,0.00022199,2]
[386441064,1758299451907,-480.0,0.00022199,2]
[386441065,1758299451916,-499.23,0.00022199,2]
[386441066,1758299451925,-480.0,0.00022199,2]
[386441067,1758299451934,-480.0,0.00022199,2]
[386441068,1758299451943,-613.87,0.00022199,2]
[386441069,1758299451952,-480.0,0.00022199,2]
[386441070,1758299451962,-798.68,0.00022199,2]
[386441071,1758299451971,-480.0,0.00022199,2]
[386441072,1758299451980,-480.0,0.00022199,2]
[386441073,1758299451990,-480.0,0.00022199,2]
[386441074,1758299451999,-480.0,0.00022199,2]
[386441075,1758299452009,-480.0,0.00022199,2]
[386441076,1758299452022,-968.69,0.00022199,2]
[386441077,1758299452031,-480.0,0.00022199,2]
[386441078,1758299452040,-480.0,0.00022199,2]
[386441079,1758299452051,-873.74,0.00022199,2]
[386441080,1758299452061,-480.0,0.00022204,2]
[386441081,1758299452071,-480.0,0.00022204,2]
[386441082,1758299452082,-480.0,0.00022204,2]
[386441083,1758299452092,-480.0,0.00022204,2]
[386441084,1758299452101,-5292.83,0.00022207,2]
[386441085,1758299452111,-1077.65,0.00022207,2]
[386441086,1758299452120,-1383.47,0.00022207,2]
[386441087,1758299452130,-7199.39,0.00022207,2]
[386441088,1758299452139,-480.0,0.00022207,2]
[386441089,1758299452149,-1010.72,0.00022207,2]
[386441090,1758299452158,-480.0,0.00022207,2]
[386441091,1758299452168,-480.0,0.00022208,2]
[386441092,1758299452177,-480.0,0.00022208,2]
[386441093,1758299452187,-229.74,0.00022208,2]
[386441094,1758299452196,-480.0,0.00022208,2]
[386441095,1758299452206,-480.0,0.00022208,2]
[386441096,1758299452215,-480.0,0.00022208,2]
[386441097,1758299452225,-1217.47,0.00022208,2]
[386441098,1758299452234,-480.0,0.00022208,2]
[386441099,1758299452244,-912.97,0.00022208,2]
[386441100,1758299452254,-480.0,0.00022208,2]
[386441101,1758299452263,-480.0,0.00022208,2]
[386441102,1758299452273,-480.0,0.00022208,2]
[386441103,1758299452282,-480.0,0.00022208,2]
[386441104,1758299452291,-480.0,0.00022208,2]
[386441105,1758299452301,-480.0,0.00022208,2]
[386441106,1758299452310,-480.0,0.00022208,2]
[386441107,1758299452319,-480.0,0.00022208,2]
[386441108,1758299452330,-480.0,0.00022208,2]
[386441109,1758299452339,-450.47865456,0.00022209,2]
[386441110,1758299452348,-480.0,0.00022209,2]
[386441111,1758299452358,-480.0,0.00022209,2]
[386441112,1758299452367,-293.48464937,0.00022209,2]
[386441113,1758299452377,-480.0,0.00022209,2]
[386441114,1758299452387,-480.0,0.00022209,2]
[386441115,1758299452396,-480.0,0.00022209,2]
[386441116,1758299452405,-480.0,0.00022209,2]
[386441117,1758299452414,-480.0,0.00022209,2]
[386441118,1758299452423,-480.0,0.00022209,2]
[386441119,1758299452432,-480.0,0.00022209,2]
[386441120,1758299452441,-480.0,0.00022209,2]
[386441121,1758299452451,-480.0,0.00022209,2]
[386441122,1758299452460,-961.98,0.00022209,2]
[386441123,1758299452469,-480.0,0.00022209,2]
[386441124,1758299452479,-1771.33,0.00022209,2]
[386441125,1758299452488,-828.66,0.00022209,2]
[386441126,1758299452498,-480.0,0.00022209,2]
[386441127,1758299452507,-480.0,0.00022209,2]
[386441128,1758299452530,-1146.79,0.00022209,2]
[386441129,1758299452539,-480.0,0.00022209,2]
[386441130,1758299452549,-480.0,0.00022209,2]
[386441131,1758299452558,-489.30564276,0.00022209,2]
[386441132,1758299452566,-480.0,0.00022209,2]
[386441133,1758299452576,-480.0,0.00022209,2]
[386441134,1758299452585,-480.0,0.00022209,2]
[386441135,1758299452594,-2411.98,0.00022209,2]
[386441136,1758299452603,-1000.0,0.00022221,2]
[386441137,1758299452613,-1000.0,0.00022221,2]
[386441138,1758299452622,-1000.0,0.00022221,2]
[386441139,1758299452631,-707.00688827,0.00022468,2]
[386441140,1758299452641,-1500.0,0.00022468,2]
[386441141,1758299452651,-1500.0,0.00022468,2]
[386441142,1758299452660,-1836.66,0.0002247,2]
[386441143,1758299452669,-513.39,0.0002247,2]
[386441144,1758299452678,-386.99877154,0.0002247,2]
[386441145,1758299452688,-1036.85,0.0002247,2]
[386441146,1758299452697,-1144.27,0.0002247,2]
[386441147,1758299452707,-480.0,0.0002247,2]
[386441148,1758299452716,-480.0,0.0002247,2]
[386441149,1758299452726,-480.0,0.0002247,2]
[386441150,1758299452735,-480.0,0.0002247,2]
[386441151,1758299452744,-480.0,0.0002247,2]